fUST/lending_fUST_20260611
["ID","MTS","AMOUNT","RATE_DAILY","PERIOD"]
[424773701,1781149842000,-500.0,0.00032876,2]
[424773704,1781149842000,-500.0,0.00032876,2]
[424773702,1781149842000,-487.0293631,0.00032876,2]
[424773708,1781149842000,-500.0,0.00032876,2]
[424773705,1781149842000,-500.0,0.00032876,2]
[424773707,1781149842000,-500.0,0.00032876,2]
[424773711,1781149842000,-500.0,0.00032876,2]
[424773700,1781149842000,-500.0,0.00032876,2]
[424773709,1781149842000,-500.0,0.00032876,2]
[424773710,1781149842000,-500.0,0.00032876,2]
[424773712,1781149842000,-500.0,0.00032876,2]
[424773714,1781149842000,-500.0,0.00032876,2]
[424773715,1781149842000,-500.0,0.00032876,2]
[424773713,1781149842000,-500.0,0.00032876,2]
[424773717,1781149842000,-500.0,0.00032876,2]
[424773720,1781149842000,-500.0,0.00032876,2]
[424773719,1781149842000,-500.0,0.00032876,2]
[424773724,1781149842000,-500.0,0.00032876,2]
[424773706,1781149842000,-500.0,0.00032876,2]
[424773770,1781149843000,-1000.0,0.00035326,30]
[424773771,1781149843000,-579.0,0.00035326,30]
[424773776,1781149843000,-301.6591,0.0003556,60]
[424773783,1781149843000,-151.0,0.000367,15]
[424773779,1781149843000,-1000.0,0.00036,120]
[424773781,1781149843000,-417.15472785,0.00036,30]
[424773766,1781149843000,-2143.4607446,0.00035167,2]
[424773785,1781149843000,-277.30859937,0.00036955,5]
[424773778,1781149843000,-341.2590025,0.00036,120]
[424773764,1781149843000,-186.0,0.00034862,2]
[424773759,1781149843000,-355.0,0.00034246,2]
[424773763,1781149843000,-311.18093438,0.00034822,2]
[424773773,1781149843000,-151.0,0.000354,18]
[424773761,1781149843000,-358.28622425,0.0003452,3]
[424773757,1781149843000,-151.0,0.000341,11]
[424773754,1781149843000,-589.8442916,0.00033203,2]
[424773756,1781149843000,-537.36108255,0.00033394,117]
[424773753,1781149843000,-537.36108255,0.000332,117]
[424773751,1781149843000,-537.36108257,0.000332,117]
[424773752,1781149843000,-537.36108255,0.000332,117]
[424773787,1781149843000,-769.05815496,0.00037,30]
[424773775,1781149843000,-417.15472785,0.00035496,2]
[424773789,1781149843000,-1000.0,0.00037,120]
[424773768,1781149843000,-1000.0,0.00035326,30]
[424773791,1781149843000,-151.0,0.00037013,43]
[424773794,1781149843000,-153.01206585,0.00037013,43]
[424773849,1781149843000,-2964.69468935,0.00038,120]
[424773848,1781149843000,-3576.44494795,0.00038,120]
[424773847,1781149843000,-35454.023992,0.00038,120]
[424773845,1781149843000,-5000.0,0.00014689,2]
[424773846,1781149843000,-1237.976008,0.00021,2]
[424773825,1781149843000,-4086.83690465,0.00038,120]
[424773823,1781149843000,-739.97663966,0.00038,120]
[424773821,1781149843000,-2698.15832941,0.00038,120]
[424773814,1781149843000,-500.0,0.00037013,43]
[424773810,1781149843000,-159.37438408,0.00037013,43]
[424773812,1781149843000,-500.0,0.00037013,43]
[424773816,1781149843000,-318.60292464,0.00037013,43]
[424773798,1781149843000,-153.01206585,0.00037013,43]
[424773796,1781149843000,-151.0,0.00037013,43]
[424773818,1781149843000,-9673.49932771,0.00038,120]
[424773800,1781149843000,-151.0,0.00037013,43]
[424773802,1781149843000,-500.0,0.00037013,43]
[424773792,1781149843000,-180.22702463,0.00037013,43]
[424773803,1781149843000,-151.0,0.00037013,43]
[424773807,1781149843000,-151.0,0.00037013,43]
[424773809,1781149843000,-500.0,0.00037013,43]
[424773805,1781149843000,-500.0,0.00037013,43]
[424773866,1781149846000,-500.84150767,0.00021917,2]
[424773867,1781149846000,-10101.25757562,0.00038,120]
[424773868,1781149922000,160.0,0.00021139,120]
[424773869,1781149923000,160.91719024,0.00022139,120]
[424773871,1781150250000,10000.0,7.6e-05,2]
[424773874,1781150250000,10000.0,7.6e-05,2]
[424773872,1781150250000,10000.0,7.6e-05,2]
[424773873,1781150250000,10000.0,7.6e-05,2]
[424773875,1781150250000,10000.0,7.6e-05,2]
[424773876,1781150250000,9461.16413271,7.6e-05,2]
[424773877,1781150453000,-500.0,0.00014254,2]
[424774333,1781151038000,-656.61944557,0.0001302,2]
[424774411,1781151039000,-565.61298443,0.00019998,2]
[424774420,1781151039000,-565.61298443,0.00019998,2]
[424774430,1781151039000,-565.61298443,0.00019998,2]
[424774428,1781151039000,-565.61298443,0.00019998,2]
[424774426,1781151039000,-565.61298443,0.00019998,2]
[424774417,1781151039000,-565.61298443,0.00019998,2]
[424774422,1781151039000,-565.61298443,0.00019998,2]
[424774415,1781151039000,-565.61298443,0.00019998,2]
[424774460,1781151039000,-376.66812292,0.0002,2]
[424774419,1781151039000,-565.61298443,0.00019998,2]
[424774409,1781151039000,-565.61298443,0.00019998,2]
[424774424,1781151039000,-565.61298443,0.00019998,2]
[424774432,1781151039000,-565.61298443,0.00019998,2]
[424774445,1781151039000,-496.21906313,0.00019999,2]
[424774436,1781151039000,-500.0,0.00019999,2]
[424774437,1781151039000,-500.0,0.00019999,2]
[424774452,1781151039000,-500.0,0.00019999,2]
[424774449,1781151039000,-500.0,0.00019999,2]
[424774454,1781151039000,-5804.44676485,0.0002,2]
[424774439,1781151039000,-500.0,0.00019999,2]
[424774443,1781151039000,-500.0,0.00019999,2]
[424774447,1781151039000,-500.0,0.00019999,2]
[424774441,1781151039000,-215.64520428,0.00019999,2]
[424774456,1781151039000,-10622.84985126,0.0002,2]
[424774458,1781151039000,-14904.03522249,0.0002,2]
[424774434,1781151039000,-500.0,0.00019999,2]
[424774404,1781151039000,-565.61298443,0.00019998,2]
[424774375,1781151039000,-466.05180926,0.0001648,2]
[424774400,1781151039000,-565.61298443,0.00019998,2]
[424774355,1781151039000,-771.43510691,0.00013285,2]
[424774360,1781151039000,-293.59835209,0.00016164,2]
[424774357,1781151039000,-500.0,0.00014838,2]
[424774351,1781151039000,-4343.38055443,0.0001302,2]
[424774359,1781151039000,-544.28471029,0.00016157,2]
[424774353,1781151039000,-3130.49572484,0.00013152,2]
[424774362,1781151039000,-198.62291837,0.00016164,2]
[424774364,1781151039000,-297.25403384,0.00016196,2]
[424774366,1781151039000,-604.3739916,0.00016281,2]
[424774368,1781151039000,-173.2159584,0.00016411,2]
[424774370,1781151039000,-500.0,0.0001648,2]
[424774379,1781151039000,-208.20475891,0.00016481,2]
[424774381,1781151039000,-151.52400365,0.00016481,2]
[424774376,1781151039000,-1380.7556791,0.00016481,2]
[424774383,1781151039000,-587.19670418,0.00016481,2]
[424774385,1781151039000,-397.24583673,0.00016481,2]
[424774386,1781151039000,-476.8914962,0.00016553,2]
[424774392,1781151039000,-769.05815496,0.00019624,2]
[424774389,1781151039000,-220.0784893,0.00018911,2]
[424774394,1781151039000,-417.15472785,0.00019624,2]
[424774396,1781151039000,-9167.06938557,0.00019897,2]
[424774390,1781151039000,-291.117,0.00019624,2]
[424774398,1781151039000,-6004.38244614,0.000199,2]
[424774406,1781151039000,-565.61298443,0.00019998,2]
[424774402,1781151039000,-565.61298443,0.00019998,2]
[424774408,1781151039000,-565.61298443,0.00019998,2]
[424774461,1781151039000,-455.43742679,0.0002,2]
[424774413,1781151039000,-565.61298443,0.00019998,2]
[424774465,1781151039000,-1000.0,0.0002,2]
[424774524,1781151039000,-152.179715,0.00021917,2]
[424774522,1781151039000,-152.179715,0.00021917,2]
[424774529,1781151039000,-152.179715,0.00021917,2]
[424774531,1781151039000,-152.179715,0.00021917,2]
[424774533,1781151039000,-152.179715,0.00021917,2]
[424774528,1781151039000,-152.179715,0.00021917,2]
[424774535,1781151039000,-152.179715,0.00021917,2]
[424774537,1781151039000,-152.179715,0.00021917,2]
[424774546,1781151039000,-152.179715,0.00021917,2]
[424774550,1781151039000,-152.179715,0.00021917,2]
[424774541,1781151039000,-152.179715,0.00021917,2]
[424774542,1781151039000,-152.179715,0.00021917,2]
[424774520,1781151039000,-152.179715,0.00021917,2]
[424774544,1781151039000,-152.179715,0.00021917,2]
[424774539,1781151039000,-152.179715,0.00021917,2]
[424774552,1781151039000,-152.179715,0.00021917,2]
[424774554,1781151039000,-152.179715,0.00021917,2]
[424774555,1781151039000,-152.179715,0.00021917,2]
[424774559,1781151039000,-152.179715,0.00021917,2]
[424774561,1781151039000,-152.179715,0.00021917,2]
[424774563,1781151039000,-152.179715,0.00021917,2]
[424774565,1781151039000,-152.179715,0.00021917,2]
[424774567,1781151039000,-152.179715,0.00021917,2]
[424774569,1781151039000,-152.179715,0.00021917,2]
[424774571,1781151039000,-152.179715,0.00021917,2]
[424774469,1781151039000,-728380.44610352,0.0002,2]
[424774548,1781151039000,-152.179715,0.00021917,2]
[424774510,1781151039000,-152.179715,0.00021917,2]
[424774450,1781151039000,-500.0,0.00019999,2]
[424774518,1781151039000,-152.179715,0.00021917,2]
[424774514,1781151039000,-152.179715,0.00021917,2]
[424774464,1781151039000,-205.4954078,0.0002,2]
[424774467,1781151039000,-162.08178863,0.0002,2]
[424774473,1781151039000,-597.36617444,0.00020089,2]
[424774475,1781151039000,-300.0,0.00020145,4]
[424774477,1781151039000,-300.0,0.00020146,3]
[424774479,1781151039000,-450.836,0.00020147,2]
[424774481,1781151039000,-186.0,0.00020147,2]
[424774471,1781151039000,-183.58503345,0.00020045,2]
[424774486,1781151039000,-1839.0,0.00021266,2]
[424774496,1781151039000,-152.179715,0.00021917,2]
[424774492,1781151039000,-152.179715,0.00021917,2]
[424774501,1781151039000,-152.179715,0.00021917,2]
[424774483,1781151039000,-600.0,0.00020297,2]
[424774494,1781151039000,-152.179715,0.00021917,2]
[424774485,1781151039000,-151.718,0.00021266,2]
[424774512,1781151039000,-152.179715,0.00021917,2]
[424774516,1781151039000,-152.179715,0.00021917,2]
[424774509,1781151039000,-152.179715,0.00021917,2]
[424774507,1781151039000,-204.797249,0.00021917,2]
[424774505,1781151039000,-152.179715,0.00021917,2]
[424774526,1781151039000,-152.179715,0.00021917,2]
[424774498,1781151039000,-152.179715,0.00021917,2]
[424774490,1781151039000,-152.179715,0.00021917,2]
[424774500,1781151039000,-152.179715,0.00021917,2]
[424774488,1781151039000,-152.179715,0.00021917,2]
[424774503,1781151039000,-152.179715,0.00021917,2]
[424774650,1781151040000,-450.38910126,0.00021917,2]
[424774654,1781151040000,-503.06091903,0.00021917,2]
[424774652,1781151040000,-500.7189256,0.00021917,2]
[424774647,1781151040000,-500.0,0.00021917,2]
[424774656,1781151040000,-500.42312824,0.00021917,2]
[424774645,1781151040000,-500.6558211,0.00021917,2]
[424774641,1781151040000,-511.99746972,0.00021917,2]
[424774635,1781151040000,-501.00540724,0.00021917,2]
[424774627,1781151040000,-502.05908969,0.00021917,2]
[424774631,1781151040000,-500.60290693,0.00021917,2]
[424774626,1781151040000,-500.92710386,0.00021917,2]
[424774643,1781151040000,-505.20117865,0.00021917,2]
[424774658,1781151040000,-163.14829421,0.00021917,2]
[424774689,1781151040000,-500.52354247,0.00021917,2]
[424774667,1781151040000,-500.53031325,0.00021917,2]
[424774665,1781151040000,-501.98333467,0.00021917,2]
[424774673,1781151040000,-500.7837391,0.00021917,2]
[424774677,1781151040000,-500.66336458,0.00021917,2]
[424774675,1781151040000,-501.43520962,0.00021917,2]
[424774671,1781151040000,-500.73261985,0.00021917,2]
[424774691,1781151040000,-647.70420478,0.00021917,2]
[424774679,1781151040000,-250.6236566,0.00021917,2]
[424774681,1781151040000,-505.23086013,0.00021917,2]
[424774687,1781151040000,-500.67351439,0.00021917,2]
[424774683,1781151040000,-500.62734834,0.00021917,2]
[424774685,1781151040000,-503.92188744,0.00021917,2]
[424774618,1781151040000,-501.24515423,0.00021917,2]
[424774662,1781151040000,-500.63300199,0.00021917,2]
[424774637,1781151040000,-511.61800677,0.00021917,2]
[424774601,1781151040000,-503.46952464,0.00021917,2]
[424774624,1781151040000,-507.35849912,0.00021917,2]
[424774575,1781151040000,-152.179715,0.00021917,2]
[424774576,1781151040000,-152.179715,0.00021917,2]
[424774582,1781151040000,-152.179715,0.00021917,2]
[424774584,1781151040000,-152.179715,0.00021917,2]
[424774580,1781151040000,-152.179715,0.00021917,2]
[424774578,1781151040000,-152.179715,0.00021917,2]
[424774573,1781151040000,-152.179715,0.00021917,2]
[424774586,1781151040000,-152.179715,0.00021917,2]
[424774593,1781151040000,-503.24331733,0.00021917,2]
[424774591,1781151040000,-501.03134035,0.00021917,2]
[424774590,1781151040000,-169.78930144,0.00021917,2]
[424774588,1781151040000,-160.81706213,0.00021917,2]
[424774597,1781151040000,-502.61136505,0.00021917,2]
[424774629,1781151040000,-500.45181304,0.00021917,2]
[424774599,1781151040000,-502.4265918,0.00021917,2]
[424774602,1781151040000,-500.63310511,0.00021917,2]
[424774695,1781151040000,-500.60038034,0.00021917,2]
[424774606,1781151040000,-503.43904308,0.00021917,2]
[424774604,1781151040000,-502.83429919,0.00021917,2]
[424774608,1781151040000,-500.43273665,0.00021917,2]
[424774612,1781151040000,-504.40768113,0.00021917,2]
[424774610,1781151040000,-501.71247437,0.00021917,2]
[424774614,1781151040000,-513.93561782,0.00021917,2]
[424774616,1781151040000,-502.82455924,0.00021917,2]
[424774639,1781151040000,-500.94709167,0.00021917,2]
[424774633,1781151040000,-502.24607648,0.00021917,2]
[424774620,1781151040000,-500.86557454,0.00021917,2]
[424774622,1781151040000,-503.08186666,0.00021917,2]
[424774595,1781151040000,-501.68372532,0.00021917,2]
[424774693,1781151040000,-505.02431294,0.00021917,2]
[424774659,1781151040000,-510.94842694,0.00021917,2]
[424774703,1781151040000,-503.353361,0.00021917,2]
[424774756,1781151040000,-501.32890854,0.00021917,2]
[424774758,1781151040000,-504.64978697,0.00021917,2]
[424774760,1781151040000,-502.03131753,0.00021917,2]
[424774765,1781151040000,-501.51759775,0.00021917,2]
[424774767,1781151040000,-500.60408276,0.00021917,2]
[424774774,1781151040000,-500.81041473,0.00021917,2]
[424774769,1781151040000,-502.09463566,0.00021917,2]
[424774773,1781151040000,-501.15958914,0.00021917,2]
[424774771,1781151040000,-501.82336965,0.00021917,2]
[424774776,1781151040000,-500.26759125,0.00021917,2]
[424774782,1781151040000,-500.81518902,0.00021917,2]
[424774780,1781151040000,-500.51319262,0.00021917,2]
[424774784,1781151040000,-445.99769296,0.00021917,2]
[424774754,1781151040000,-500.71503192,0.00021917,2]
[424774787,1781151040000,-502.2701044,0.00021917,2]
[424774793,1781151040000,-500.28419752,0.00021917,2]
[424774801,1781151040000,-523.39108985,0.00021917,2]
[424774808,1781151040000,-500.68312017,0.00021917,2]
[424774805,1781151040000,-519.88842624,0.00021917,2]
[424774803,1781151040000,-500.88936586,0.00021917,2]
[424774791,1781151040000,-501.98654672,0.00021917,2]
[424774789,1781151040000,-500.0,0.00021917,2]
[424774798,1781151040000,-502.73242839,0.00021917,2]
[424774794,1781151040000,-505.09199853,0.00021917,2]
[424774800,1781151040000,-501.64754214,0.00021917,2]
[424774806,1781151040000,-588.23212893,0.00021917,2]
[424774697,1781151040000,-504.0179065,0.00021917,2]
[424774796,1781151040000,-507.50473555,0.00021917,2]
[424774785,1781151040000,-509.03904703,0.00021917,2]
[424774764,1781151040000,-515.66871836,0.00021917,2]
[424774778,1781151040000,-369.61958997,0.00021917,2]
[424774762,1781151040000,-500.71794972,0.00021917,2]
[424774699,1781151040000,-501.51321637,0.00021917,2]
[424774753,1781151040000,-500.0,0.00021917,2]
[424774714,1781151040000,-576.61002253,0.00021917,2]
[424774705,1781151040000,-512.37807634,0.00021917,2]
[424774710,1781151040000,-501.80484985,0.00021917,2]
[424774707,1781151040000,-501.79853783,0.00021917,2]
[424774716,1781151040000,-500.82376899,0.00021917,2]
[424774712,1781151040000,-500.37890253,0.00021917,2]
[424774709,1781151040000,-211.68149388,0.00021917,2]
[424774719,1781151040000,-500.47509039,0.00021917,2]
[424774718,1781151040000,-501.24910288,0.00021917,2]
[424774723,1781151040000,-502.32297193,0.00021917,2]
[424774721,1781151040000,-500.42280624,0.00021917,2]
[424774729,1781151040000,-502.65975134,0.00021917,2]
[424774725,1781151040000,-500.56976692,0.00021917,2]
[424774701,1781151040000,-500.44916436,0.00021917,2]
[424774727,1781151040000,-506.82093561,0.00021917,2]
[424774748,1781151040000,-507.1819814,0.00021917,2]
[424774749,1781151040000,-500.30620652,0.00021917,2]
[424774742,1781151040000,-500.64407377,0.00021917,2]
[424774744,1781151040000,-500.98268484,0.00021917,2]
[424774746,1781151040000,-500.27895509,0.00021917,2]
[424774740,1781151040000,-509.37377604,0.00021917,2]
[424774751,1781151040000,-509.07123892,0.00021917,2]
[424774733,1781151040000,-502.16132321,0.00021917,2]
[424774731,1781151040000,-500.4386331,0.00021917,2]
[424774737,1781151040000,-510.43216254,0.00021917,2]
[424774739,1781151040000,-500.41450329,0.00021917,2]
[424774735,1781151040000,-502.35983906,0.00021917,2]
[424774892,1781151041000,-501.89990786,0.00021917,2]
[424774867,1781151041000,-156.725711,0.00021917,2]
[424774893,1781151041000,-500.41877188,0.00021917,2]
[424774899,1781151041000,-508.50407398,0.00021917,2]
[424774888,1781151041000,-500.27149119,0.00021917,2]
[424774884,1781151041000,-500.32002417,0.00021917,2]
[424774886,1781151041000,-505.05851256,0.00021917,2]
[424774871,1781151041000,-156.725711,0.00021917,2]
[424774882,1781151041000,-502.19004934,0.00021917,2]
[424774865,1781151041000,-156.725711,0.00021917,2]
[424774897,1781151041000,-501.75674611,0.00021917,2]
[424774869,1781151041000,-501.90612391,0.00021917,2]
[424774890,1781151041000,-500.67497022,0.00021917,2]
[424774907,1781151041000,-185.37685484,0.00021917,2]
[424774901,1781151041000,-506.41817834,0.00021917,2]
[424774905,1781151041000,-500.28655653,0.00021917,2]
[424774903,1781151041000,-500.93272123,0.00021917,2]
[424774908,1781151041000,-510.18772193,0.00021917,2]
[424774922,1781151041000,-500.70130904,0.00021917,2]
[424774910,1781151041000,-501.34225043,0.00021917,2]
[424774913,1781151041000,-500.70487665,0.00021917,2]
[424774928,1781151041000,-501.09668108,0.00021917,2]
[424774924,1781151041000,-514.58928514,0.00021917,2]
[424774926,1781151041000,-534.07862838,0.00021917,2]
[424774930,1781151041000,-500.17991961,0.00021917,2]
[424774914,1781151041000,-501.09240834,0.00021917,2]
[424774810,1781151041000,-500.0,0.00021917,2]
[424774895,1781151041000,-500.21739329,0.00021917,2]
[424774880,1781151041000,-503.42356302,0.00021917,2]
[424774812,1781151041000,-505.01877107,0.00021917,2]
[424774873,1781151041000,-156.725711,0.00021917,2]
[424774916,1781151041000,-500.74948422,0.00021917,2]
[424774815,1781151041000,-581.1899217,0.00021917,2]
[424774817,1781151041000,-500.42102075,0.00021917,2]
[424774832,1781151041000,-503.95695911,0.00021917,2]
[424774821,1781151041000,-501.8583043,0.00021917,2]
[424774819,1781151041000,-502.95327465,0.00021917,2]
[424774830,1781151041000,-500.55231844,0.00021917,2]
[424774823,1781151041000,-500.52285413,0.00021917,2]
[424774827,1781151041000,-500.40521927,0.00021917,2]
[424774825,1781151041000,-507.81535195,0.00021917,2]
[424774829,1781151041000,-501.19348728,0.00021917,2]
[424774834,1781151041000,-500.76565051,0.00021917,2]
[424774813,1781151041000,-500.71355366,0.00021917,2]
[424774875,1781151041000,-156.725711,0.00021917,2]
[424774836,1781151041000,-500.52846141,0.00021917,2]
[424774843,1781151041000,-500.83631744,0.00021917,2]
[424774841,1781151041000,-167.687249,0.00021917,2]
[424774852,1781151041000,-167.687249,0.00021917,2]
[424774846,1781151041000,-167.687249,0.00021917,2]
[424774858,1781151041000,-156.725711,0.00021917,2]
[424774850,1781151041000,-167.687249,0.00021917,2]
[424774845,1781151041000,-501.17153638,0.00021917,2]
[424774856,1781151041000,-500.37794613,0.00021917,2]
[424774854,1781151041000,-472.48504685,0.00021917,2]
[424774861,1781151041000,-156.725711,0.00021917,2]
[424774859,1781151041000,-156.725711,0.00021917,2]
[424774863,1781151041000,-156.725711,0.00021917,2]
[424774876,1781151041000,-542.72290686,0.00021917,2]
[424774839,1781151041000,-507.15619508,0.00021917,2]
[424774918,1781151041000,-504.64588668,0.00021917,2]
[424774848,1781151041000,-167.687249,0.00021917,2]
[424774935,1781151041000,-502.19251473,0.00021917,2]
[424775000,1781151041000,-501.25974302,0.00021917,2]
[424774996,1781151041000,-602.28199117,0.00021917,2]
[424774998,1781151041000,-501.80609062,0.00021917,2]
[424775002,1781151041000,-543.04192441,0.00021917,2]
[424775004,1781151041000,-500.59434511,0.00021917,2]
[424775009,1781151041000,-1005.35772207,0.00021917,2]
[424775011,1781151041000,-502.6217284,0.00021917,2]
[424775015,1781151041000,-503.72013684,0.00021917,2]
[424775017,1781151041000,-501.0170878,0.00021917,2]
[424775013,1781151041000,-504.85697676,0.00021917,2]
[424775019,1781151041000,-505.29576831,0.00021917,2]
[424775030,1781151041000,-501.4599372,0.00021917,2]
[424775021,1781151041000,-505.59843855,0.00021917,2]
[424775026,1781151041000,-506.07454299,0.00021917,2]
[424775022,1781151041000,-506.19037829,0.00021917,2]
[424775028,1781151041000,-535.74717712,0.00021917,2]
[424775024,1781151041000,-522.54083917,0.00021917,2]
[424775032,1781151041000,-502.55723573,0.00021917,2]
[424775034,1781151041000,-501.23311686,0.00021917,2]
[424775046,1781151041000,-502.80711935,0.00021917,2]
[424775048,1781151041000,-508.319656,0.00021917,2]
[424775044,1781151041000,-502.19771356,0.00021917,2]
[424775050,1781151041000,-501.68164326,0.00021917,2]
[424775037,1781151041000,-500.0,0.00021917,2]
[424775042,1781151041000,-500.70831191,0.00021917,2]
[424775039,1781151041000,-222.06690365,0.00021917,2]
[424775036,1781151041000,-502.06076743,0.00021917,2]
[424775041,1781151041000,-506.51641658,0.00021917,2]
[424774920,1781151041000,-508.45578333,0.00021917,2]
[424775007,1781151041000,-501.85450866,0.00021917,2]
[424774992,1781151041000,-501.51648044,0.00021917,2]
[424774878,1781151041000,-500.67539828,0.00021917,2]
[424774994,1781151041000,-567.8152531,0.00021917,2]
[424774990,1781151041000,-514.30468093,0.00021917,2]
[424774940,1781151041000,-502.37944933,0.00021917,2]
[424774944,1781151041000,-504.94801968,0.00021917,2]
[424774937,1781151041000,-514.57533735,0.00021917,2]
[424774938,1781151041000,-462.2473302,0.00021917,2]
[424774942,1781151041000,-501.28740135,0.00021917,2]
[424774946,1781151041000,-501.50546574,0.00021917,2]
[424774954,1781151041000,-506.13804987,0.00021917,2]
[424774948,1781151041000,-503.26057749,0.00021917,2]
[424774956,1781151041000,-500.94793701,0.00021917,2]
[424774950,1781151041000,-504.70730673,0.00021917,2]
[424774958,1781151041000,-501.06746627,0.00021917,2]
[424774962,1781151041000,-505.53186825,0.00021917,2]
[424774965,1781151041000,-500.99751951,0.00021917,2]
[424774952,1781151041000,-508.68145178,0.00021917,2]
[424774964,1781151041000,-450.47430394,0.00021917,2]
[424775005,1781151041000,-501.75491089,0.00021917,2]
[424774973,1781151041000,-500.21676447,0.00021917,2]
[424774988,1781151041000,-504.83565059,0.00021917,2]
[424774984,1781151041000,-500.0,0.00021917,2]
[424774975,1781151041000,-503.09669425,0.00021917,2]
[424774986,1781151041000,-502.82871236,0.00021917,2]
[424774971,1781151041000,-501.91482373,0.00021917,2]
[424774982,1781151041000,-500.61840996,0.00021917,2]
[424774977,1781151041000,-500.53905433,0.00021917,2]
[424774980,1781151041000,-503.67309895,0.00021917,2]
[424774960,1781151041000,-487.05584534,0.00021917,2]
[424774967,1781151041000,-501.7819448,0.00021917,2]
[424774969,1781151041000,-507.9144442,0.00021917,2]
[424774979,1781151041000,-505.54283391,0.00021917,2]
[424775131,1781151042000,-502.10532341,0.00021917,2]
[424775117,1781151042000,-631.14805573,0.00021917,2]
[424775123,1781151042000,-500.94557826,0.00021917,2]
[424775121,1781151042000,-639.17944614,0.00021917,2]
[424775115,1781151042000,-508.04977696,0.00021917,2]
[424775127,1781151042000,-501.37932364,0.00021917,2]
[424775110,1781151042000,-505.16738184,0.00021917,2]
[424775125,1781151042000,-502.27005374,0.00021917,2]
[424775119,1781151042000,-501.82770499,0.00021917,2]
[424775133,1781151042000,-642.08495466,0.00021917,2]
[424775104,1781151042000,-502.57108172,0.00021917,2]
[424775136,1781151042000,-502.4374538,0.00021917,2]
[424775160,1781151042000,-500.44933321,0.00021917,2]
[424775147,1781151042000,-501.70548487,0.00021917,2]
[424775135,1781151042000,-503.51414287,0.00021917,2]
[424775146,1781151042000,-500.8097367,0.00021917,2]
[424775138,1781151042000,-503.42144161,0.00021917,2]
[424775142,1781151042000,-500.0,0.00021917,2]
[424775144,1781151042000,-307.06864723,0.00021917,2]
[424775140,1781151042000,-491.69352033,0.00021917,2]
[424775151,1781151042000,-503.22986289,0.00021917,2]
[424775153,1781151042000,-500.71697991,0.00021917,2]
[424775154,1781151042000,-501.18252508,0.00021917,2]
[424775156,1781151042000,-502.54149017,0.00021917,2]
[424775171,1781151042000,-504.33726275,0.00021917,2]
[424775167,1781151042000,-501.46325475,0.00021917,2]
[424775129,1781151042000,-502.18742204,0.00021917,2]
[424775149,1781151042000,-500.74665153,0.00021917,2]
[424775108,1781151042000,-500.61498233,0.00021917,2]
[424775080,1781151042000,-500.56893333,0.00021917,2]
[424775112,1781151042000,-623.06960881,0.00021917,2]
[424775051,1781151042000,-504.84041551,0.00021917,2]
[424775053,1781151042000,-501.1913571,0.00021917,2]
[424775055,1781151042000,-501.12346058,0.00021917,2]
[424775058,1781151042000,-615.38627646,0.00021917,2]
[424775067,1781151042000,-502.43144263,0.00021917,2]
[424775069,1781151042000,-501.38734529,0.00021917,2]
[424775074,1781151042000,-502.10800934,0.00021917,2]
[424775076,1781151042000,-503.14574713,0.00021917,2]
[424775072,1781151042000,-559.8965956,0.00021917,2]
[424775057,1781151042000,-500.98717878,0.00021917,2]
[424775070,1781151042000,-502.92602947,0.00021917,2]
[424775064,1781151042000,-500.64239793,0.00021917,2]
[424775078,1781151042000,-501.59111489,0.00021917,2]
[424775106,1781151042000,-502.17733753,0.00021917,2]
[424775062,1781151042000,-500.68751164,0.00021917,2]
[424775060,1781151042000,-500.0,0.00021917,2]
[424775162,1781151042000,-500.69993725,0.00021917,2]
[424775082,1781151042000,-504.73132416,0.00021917,2]
[424775091,1781151042000,-500.66020953,0.00021917,2]
[424775089,1781151042000,-553.76390607,0.00021917,2]
[424775098,1781151042000,-502.52184919,0.00021917,2]
[424775087,1781151042000,-502.59640181,0.00021917,2]
[424775083,1781151042000,-501.57083173,0.00021917,2]
[424775093,1781151042000,-500.0,0.00021917,2]
[424775095,1781151042000,-502.32510319,0.00021917,2]